Cogmind - Beta 14 @@@ ROGUE MODE // 2024.11.26 @ 22:42:55 Player: CrossedViper Result: Self-destructed Performance ------------- Evolutions (2) 1000 Regions Visited (5) 1000 Robots Destroyed (4) 20 Value Destroyed (141) 141 Prototype IDs (1) 20 Alien Tech Used (0) 0 Bonus (440) 440 TOTAL SCORE: 2621 Bonus ------- Follower Combat Kills 440 Cogmind --------- Core Integrity 550/550 Matter 281/300 Energy 250/250 System Corruption 0% Temperature Cool (0) Movement Rolling (175) Ox5 Location -8/Materials Parts ------- > --- POWER (1) -------- Ion Engine > --- PROPULSION (2) --- Aluminum Leg Compact Wheel > --- UTILITY (6) ------ Army-in-a-Box (1/30) > --- WEAPON (2) ------- Makeshift Spear > --- INVENTORY (5) ---- Wheel Flight Unit Peak State ------------ > --- POWER ------------ Ion Engine > --- PROPULSION ------- Aluminum Leg Compact Wheel > --- UTILITY ---------- Army-in-a-Box > --- WEAPON ----------- Makeshift Spear > --- INVENTORY -------- Wheel Flight Unit [Rating: 61] Favorites ----------- Power Ion Engine Engine Ion Engine Propulsion Aluminum Leg Treads Light Treads Leg Aluminum Leg Wheel Compact Wheel Flight Unit Flight Unit Utility Army-in-a-Box Device Army-in-a-Box Storage Medium Storage Unit Weapon Makeshift Spear Piercing Weapon Makeshift Spear Build | -11 -10 -10 -10 -9 -8 ------- Run | Yrd Mat Min Exi Min Mat Slots Evolved 4 | . . . . . 4 Power . | . . . . . . Propulsion . | . . . . . . Utility 4 | . . . . . 4 Weapon . | . . . . . . Parts Attached 8 | . . . 3 4 1 Power 1 | . . . . 1 . Engine 1 | . . . . 1 . Core . | . . . . . . Reactor . | . . . . . . Propulsion 4 | . . . 1 3 . Treads 1 | . . . 1 . . Leg 1 | . . . . 1 . Wheel 1 | . . . . 1 . Hover . | . . . . . . Flight 1 | . . . . 1 . Utility 2 | . . . 1 . 1 Device 1 | . . . . . 1 Storage 1 | . . . 1 . . Processor . | . . . . . . Hackware . | . . . . . . Protection . | . . . . . . Artifact . | . . . . . . Weapon 1 | . . . 1 . . Energy Gun . | . . . . . . Energy Cannon . | . . . . . . Ballistic Gun . | . . . . . . Ballistic Cannon . | . . . . . . Launcher . | . . . . . . Special Weapon . | . . . . . . Impact Weapon . | . . . . . . Slashing Weapon . | . . . . . . Piercing Weapon 1 | . . . 1 . . Special Melee Weapon . | . . . . . . Unidentified Prototypes 1 | . . . . . 1 Parts Lost 1 | . . . . 1 . Power . | . . . . . . Propulsion 1 | . . . . 1 . Utility . | . . . . . . Weapon . | . . . . . . Highest Loss Streak 1 | . . . . 1 . To Critical Strikes . | . . . . . . Average Slot Usage (%) 40 | . . . 29 54 45 Engine 6 | . . . . 4 9 Treads 2 | . . . 9 3 . Leg 6 | . . . . 7 9 Wheel 6 | . . . . 5 9 Device 5 | . . . . . 9 Storage 3 | . . . 9 14 . Piercing Weapon 9 | . . . 10 14 9 Peak Build Rating 61 | . . . 11 13 61 Average Rating 40 | . . . 6 11 60 On Entrance 4 | . . . . 11 13 Naked Turns 152 | . 47 16 89 . . Heaviest Build 17 | . . . 12 17 7 Greatest Support 20 | 3 3 3 20 20 16 Greatest Overweight (x) 2 | . . . . 2 . Average Overweight (x) . | . . . . . . Largest Inventory Capacity 10 | 5 5 5 10 10 5 Average Capacity 6 | 5 5 5 8 10 5 Most Carried 8 | . . . 6 8 2 Average Carried 2 | . . . 2 6 2 Final Capacity 10 | 5 5 5 10 10 5 Final Carried 8 | . . . 6 8 2 Class Distribution -------------------- 95% | Mutant 4% | Scavenger-Mutant Dominant Class ---------------- Mutant | -10/Materials Mutant | -10/Mines Mutant | -10/Exiles Scavenger-Mutant | -9/Mines Mutant | -8/Materials Resources | -11 -10 -10 -10 -9 -8 ----------- Run | Yrd Mat Min Exi Min Mat Matter Collected 251 | 106 . . 60 85 . Remotely . | . . . . . . Salvage Created 206 | . . . 112 94 . Parts 15 | . . . 5 10 . Haulers Intercepted . | . . . . . . Recyclers Shooed 1 | . . . . 1 . Parts Field Recycled . | . . . . . . Retrieved Matter . | . . . . . . Parts Self-Destructed . | . . . . . . Prevented . | . . . . . . Kills | -11 -10 -10 -10 -9 -8 ------- Run | Yrd Mat Min Exi Min Mat Combat Hostiles Destroyed 2 | . . . . 2 . Melee 2 | . . . . 2 . Classes Destroyed 3 | . . . . 3 . Builder 1 | . . . . 1 . Recycler 1 | . . . . 1 . Swarmer 2 | . . . . 2 . Best Kill Streak 3 | . . . . 3 . Combat Bots Only 2 | . . . . 2 . Max Kills in Single Turn 1 | . . . . 1 . Gunslinging . | . . . . . . Exploded . | . . . . . . Melee 1 | . . . . 1 . Uniques/NPCs Destroyed . | . . . . . . Combat | -11 -10 -10 -10 -9 -8 -------- Run | Yrd Mat Min Exi Min Mat Hostile Shots Fired 43 | . . . . 41 2 Missed 9 | . . . . 9 . Damage Taken 302 | . 7 . . 264 31 Core 126 | . 7 . . 119 . Absorbed by Shields . | . . . . . . Core Remaining (%) 74 | 100 . . . 49 . Volleys Fired . | . . . . . . Largest . | . . . . . . Hottest . | . . . . . . Shots Fired . | . . . . . . Gun . | . . . . . . Cannon . | . . . . . . Launcher . | . . . . . . Special . | . . . . . . Kinetic . | . . . . . . Thermal . | . . . . . . Explosive . | . . . . . . Electromagnetic . | . . . . . . Robot Hit Streak . | . . . . . . Robot Miss Streak . | . . . . . . Penetration Max . | . . . . . . Secondary Targets . | . . . . . . Shots Hit Robots 17 | . . . 9 8 . Core Hits 6 | . . . 2 4 . Critical Kills . | . . . . . . Critical Parts Destroyed . | . . . . . . Critical Strikes 2 | . . . 1 1 . Impale 2 | . . . 1 1 . Melee Attacks 28 | . . . 9 19 . Impact . | . . . . . . Slashing . | . . . . . . Piercing 28 | . . . 9 19 . Sneak Attacks 3 | . . . . 3 . Combat Hostiles . | . . . . . . Follow-up Attacks . | . . . . . . Damage Inflicted 802 | . 14 . 485 303 . Guns . | . . . . . . Cannons . | . . . . . . Explosions . | . . . . . . Melee 788 | . . . 485 303 . Ramming 14 | . 14 . . . . Kinetic . | . . . . . . Thermal . | . . . . . . Explosive . | . . . . . . Electromagnetic . | . . . . . . Impact . | . . . . . . Slashing . | . . . . . . Piercing 788 | . . . 485 303 . Highest Corruption . | . . . . . . Average Corruption . | . . . . . . Corruption Purged . | . . . . . . Corruption Blocked . | . . . . . . Overload Shots . | . . . . . . Overflow Damage 47 | . . . 19 28 . Projectiles . | . . . . . . Explosions . | . . . . . . Melee 47 | . . . 19 28 . Knockbacks . | . . . . . . Impact . | . . . . . . Kinetic . | . . . . . . Secondary . | . . . . . . Self-Inflicted Damage 7 | . 7 . . . . Shots . | . . . . . . Rammed 2 | 1 1 . . . . Targets Rammed 2 | 1 1 . . . . Kicked . | . . . . . . Crushed . | . . . . . . Highest Temperature . | . . . . . . Average Temperature . | . . . . . . Received Heat Transfer 18 | . . . . . 18 Siege Activations . | . . . . . . Robots Corrupted . | . . . . . . Combat Hostiles . | . . . . . . Parts Fried . | . . . . . . Impact Corruptions . | . . . . . . Robots Melted . | . . . . . . Combat Hostiles . | . . . . . . Parts Melted . | . . . . . . Heat Transferred . | . . . . . . Parts Sabotaged . | . . . . . . Parts Stolen . | . . . . . . Parts Stripped . | . . . . . . Power Chain Reactions . | . . . . . . Alert | -11 -10 -10 -10 -9 -8 ------- Run | Yrd Mat Min Exi Min Mat Peak Influence 1239 | . 15 5 . 51 1239 Initial 19 | . . 5 . . 19 Average 862 | . 6 5 . 29 1030 Maximum Alert Level 4 | . . . . . 4 Low Security (%) 20 | 100 100 100 . 100 4 Level 1 . | . . . . . . Level 2 3 | . . . . . 4 Level 3 34 | . . . . . 41 Level 4 40 | . . . . . 48 Level 5 . | . . . . . . High Security . | . . . . . . Max Security . | . . . . . . Squads Dispatched 7 | . . . . . 7 Investigation . | . . . . . . Extermination . | . . . . . . Reinforcement 5 | . . . . . 5 Assault 1 | . . . . . 1 Garrison 1 | . . . . . 1 Intercept . | . . . . . . Searches Triggered . | . . . . . . Construction Impeded . | . . . . . . Haulers Reinforced . | . . . . . . Active Scanning Responses . | . . . . . . Cargo Convoy Interrupts . | . . . . . . Stealth | -11 -10 -10 -10 -9 -8 --------- Run | Yrd Mat Min Exi Min Mat Distress Signals 6 | . . . . . 6 Communications Jammed . | . . . . . . Distress Signals . | . . . . . . Times Spotted 11 | . . . . 3 8 Peak Tracking Total 5 | . . . . 2 5 Tactical Retreats . | . . . . . . Traps | -11 -10 -10 -10 -9 -8 ------- Run | Yrd Mat Min Exi Min Mat Traps Triggered . | . . . . . . Indirectly . | . . . . . . Trap Hack Attempts . | . . . . . . Triggered . | . . . . . . Disarmed . | . . . . . . Reprogrammed . | . . . . . . Reused . | . . . . . . Traps Extracted . | . . . . . . Installed . | . . . . . . Triggered . | . . . . . . Machines | -11 -10 -10 -10 -9 -8 ---------- Run | Yrd Mat Min Exi Min Mat Machines Disabled 2 | . . . . . 2 Max in Single Turn . | . . . . . . Garrison Access 1 | . . . . . 1 Machines Repaired . | . . . . . . Machines Dismantled . | . . . . . . Machines Sabotaged . | . . . . . . Overloaded Fab Kills . | . . . . . . Hacking | -11 -10 -10 -10 -9 -8 --------- Run | Yrd Mat Min Exi Min Mat Machines Accessed . | . . . . . . Terminals . | . . . . . . Fabricators . | . . . . . . Repair Stations . | . . . . . . Recycling Units . | . . . . . . Scanalyzers . | . . . . . . Garrison Access . | . . . . . . Total Hacks . | . . . . . . Successful . | . . . . . . Failed . | . . . . . . Catastrophic . | . . . . . . Database Lockouts . | . . . . . . Manual 1 | . . . 1 . . Terminals . | . . . . . . Fabricators . | . . . . . . Repair Stations . | . . . . . . Recycling Units . | . . . . . . Scanalyzers . | . . . . . . Garrison Access . | . . . . . . Terminal Hacks . | . . . . . . Fabricator Hacks . | . . . . . . Repair Station Hacks . | . . . . . . Recycling Unit Hacks . | . . . . . . Scanalyzer . | . . . . . . Garrison Access Hacks . | . . . . . . Unauthorized Hacks . | . . . . . . Terminals . | . . . . . . Fabricators . | . . . . . . Repair Stations . | . . . . . . Recycling Units . | . . . . . . Scanalyzers . | . . . . . . Garrison Access . | . . . . . . Data Cores Recovered . | . . . . . . Used . | . . . . . . Hacking Detections . | . . . . . . Full Trace Events . | . . . . . . Feedback Events . | . . . . . . Feedback Blocked . | . . . . . . Robot Schematics Acquired . | . . . . . . Robots Built . | . . . . . . Authchips . | . . . . . . Time . | . . . . . . Total Robot Build Rating . | . . . . . . Part Schematics Acquired . | . . . . . . Parts Built . | . . . . . . Authchips . | . . . . . . Time . | . . . . . . Total Part Build Rating . | . . . . . . Parts Repaired . | . . . . . . Time . | . . . . . . Parts Recycled . | . . . . . . Recycled Matter . | . . . . . . Retrieved Matter . | . . . . . . Retrieved Components . | . . . . . . Parts Scanalyzed . | . . . . . . Part Schematics Acquired . | . . . . . . Parts Damaged . | . . . . . . Bothacking | -11 -10 -10 -10 -9 -8 ------------ Run | Yrd Mat Min Exi Min Mat Used RIF Installer . | . . . . . . Robots Hacked . | . . . . . . Non-combat . | . . . . . . Combat . | . . . . . . Robot Hacks Applied . | . . . . . . Relay Couplers Released 1 | . . . . . 1 Machine Destruction 1 | . . . . . 1 Fabnet Peak Effective % . | . . . . . . Robots Rewired . | . . . . . . Allies Hacked . | . . . . . . Hacks Repelled . | . . . . . . Allies | -11 -10 -10 -10 -9 -8 -------- Run | Yrd Mat Min Exi Min Mat Total Allies 3 | . . 3 . . . Largest Group 3 | . . 3 1 1 . Highest-Rated Group 40 | . . 40 8 8 . Highest-Rated Ally 16 | . . 16 8 8 . Total Orders 4 | . . . . . 4 ROAM 1 | . . . . . 1 EXPLORE 2 | . . . . . 2 RETURN 1 | . . . . . 1 Ally Attacks 303 | . . . . 3 300 Total Damage 4887 | . . . . 24 4863 Kills 56 | . . . . 1 55 Allies Corrupted . | . . . . . . Allies Melted . | . . . . . . Intel | -11 -10 -10 -10 -9 -8 ------- Run | Yrd Mat Min Exi Min Mat Robot Analysis Total . | . . . . . . Derelict Logs Recovered 1 | . . . . 1 . Drone Launches 46 | . . . . . 46 Drone Recoveries 17 | . . . . . 17 Exploration | -11 -10 -10 -10 -9 -8 ------------- Run | Yrd Mat Min Exi Min Mat Turns Passed 1526 | 10 47 16 370 119 964 Spaces Moved 524 | 17 91 31 331 53 1 Core 312 | 17 91 31 173 . . Treads 167 | . . . 158 9 . Legs 4 | . . . . 4 . Wheels 36 | . . . . 35 1 Hover . | . . . . . . Flight 5 | . . . . 5 . Fastest Speed 50 | 50 50 50 50 100 100 Average Speed 91 | 50 50 50 102 136 100 Slowest Speed 200 | 50 50 50 160 200 100 Overloaded Moves . | . . . . . . Propulsion Burnouts . | . . . . . . Robots Hopped . | . . . . . . Cave-ins Triggered . | . . . . . . Exploration Rate (%) 36 | 3 29 10 69 11 99 Regions Visited 5 Branch Regions 3 Pre-discovered Areas . | . . . . . . Known Exits Taken . | . . . . . . Unknown Exits Taken 5 | 1 1 1 1 1 . Scrap Searched . | . . . . . . Spaces Dug . | . . . . . . Terrain Destroyed . | . . . . . . Melee . | . . . . . . Projectile . | . . . . . . AOE . | . . . . . . Terrain Rammed . | . . . . . . Walls Destroyed . | . . . . . . Machines Disabled . | . . . . . . Actions | -11 -10 -10 -10 -9 -8 --------- Run | Yrd Mat Min Exi Min Mat Total 1530 | 17 91 30 350 78 964 Wait 962 | . . . . 1 961 Move 519 | 16 90 30 330 52 1 Hop . | . . . . . . Pick Up 3 | . . . 1 2 . Fast Attach 7 | . . . 3 3 1 Attach . | . . . . . . Detach . | . . . . . . Swap 1 | . . . . 1 . Drop 1 | . . . . . 1 Fire . | . . . . . . Melee 28 | . . . 9 19 . Ram 2 | 1 1 . . . . Kick . | . . . . . . Crush . | . . . . . . Escape Stasis . | . . . . . . Rewire 7 | . . . 7 . . Trap . | . . . . . . Miscellaneous . | . . . . . . Route ------- -11/Scrapyard -10/Materials -10/Mines -10/Exiles -9/Mines -8/Materials (discovered 3 exits: [*Fac x3]) History --------- Turn | Location | Event 2 | -11/Scrapyard | Met Revision 17 4 | -11/Scrapyard | Discovered new exit (range 12) 11 | -11/Scrapyard | Entered Materials 50 | -10/Materials | Discovered new exit (range 15) 58 | -10/Materials | Entered Mines 59 | -10/Mines | Assisted by bots powering up and referring to "LRC-V3" 72 | -10/Mines | Deemed a non-threat by the Exiles lab entrance 72 | -10/Mines | Discovered new exit (range 5) 74 | -10/Mines | Entered Exiles 74 | -10/Exiles | Found Exiles lab destroyed 74 | -10/Exiles | Accompanied by 1 ally 133 | -10/Exiles | Opened EX-Vault 291 | -10/Exiles | Found Prototype Device 309 | -10/Exiles | Build established: Mutant 423 | -10/Exiles | Discovered new exit (range 15) 444 | -10/Exiles | Entered Mines 444 | -9/Mines | Accompanied by 1 ally 495 | -9/Mines | Core integrity fell below 50% 526 | -9/Mines | Learned Materials stockpile data 560 | -9/Mines | Discovered new exit (range 3) 563 | -9/Mines | Entered Materials 563 | -8/Materials | Evolved 4 slots: Utility x4 565 | -8/Materials | Identified Army-in-a-Box 658 | -8/Materials | Garrison activated, responded to threat 694 | -8/Materials | Discovered new exit (range 74) 718 | -8/Materials | Discovered new exit (range 64) 775 | -8/Materials | Discovered new exit (range 103) 903 | -8/Materials | Lost 7 allies 1527 | -8/Materials | Self-destructed Last Messages --------------- 01416_ K-01 Serf collects debris. 01422_ K-01 Serf cleans the Pressure Siphon. 01456_ R-06 Scavenger collects Hvy. Assault Rifle. 01456_ R-06 Scavenger collects Surge Thruster. 01457_ K-01 Serf cleans the Pressure Siphon. 01460_ R-06 Scavenger collects Lgt. Armor Plating. 01461_ R-06 Scavenger collects Reaction Control System. 01464_ K-01 Serf cleans the Pressure Siphon. 01474_ K-01 Serf collects debris. 01477_ R-06 Scavenger collects Heat Sink. 01480_ K-01 Serf cleans the Pressure Siphon. 01481_ R-06 Scavenger collects Heat Sink. 01483_ K-01 Serf cleans the Pressure Siphon. Map ----- +----------------------------------------------------+ | | | | | | | | | | | | | | | | | | | | | | | | | | | | | | | | | | | ?????????????????????????????????????########?? | | ????????????????????????????????????# #?? | | ????????????????????????????????????# """ #?? | | ???################################## """ #?? | | ???# + """ #?? | | ???# ###### # #?? | | ???# #????# ####+###### | | ???# #????# % | | ???# #????# !@ | | ####+## #????# | | # / # #????# % | | # ! # #??########### % | | # # # """"" # """ | | #/ + # ""T"" """ # % % """ | | # # #### """ + % [![ %""" | | # # #??# ! """ # % % [![ | | # # #??# ] %% !# %%% ![[ | | ####### #???######## #### ##########"T"## | | ??????# #??????????###### #% !#?#"""### | | ?????## #???????????##! # """ #?#####?? | | ?????## #???????????#! % # """ #???????# | | ?????## #???????????#! %+ """ #???????# | | ??????# #???????????#! % # #???????# | | ??????# #???????????#! # #???????# | | ??????# #???????????##! ########???????# | | ####### #????????????#### #??????????????# | | # !! ]# #???####?#??????# #??????????????# | | # !! # ################# #??????????????# | | # ! # ########???????# | | # #%% #???????# | | # "Y" # % r % #???????# | | # """ + u% n ######### | | # # ########+##### | +----------------------------------------------------+ Best States ------------- Heat Dissipation 31 Energy Generation 10 Energy Capacity 250 Matter Stores 291 Matter Capacity 300 Sight Range 16 Terrain Scan Density 10 Evasion (%) 50 Recoil Reduction 1 Item Schematics ----------------- None Robot Schematics ------------------ None Fabricated ------------ Nothing Alien Tech Used ----------------- None Achievements -------------- None Challenges ------------ None Game ------ Seed ScrapCommTendrils Manual? 0 Play Time 00:08:59 Cumulative 915.9 hours Start 2024.11.26 @ 22:33:29 End 2024.11.26 @ 22:42:55 Sessions 1 Manual Loads 0 Difficulty Rogue Special Mode None Game No. 569 Rogue 562 Adventurer 0 Explorer 7 Win Type - Total 63 Types 23/6/22/2/0/1/6/1/2 Lore% 87 Gallery% 95 Achievement% 85 Wizard Run 0 Options --------- Layout 1 ASCII 0 Keyboard 0 Movement Numpad Keybinds 0 Fullscreen 1 Font 24/Smallcaps Map View 50x35 Zoom Use 0% Tactical HUD 1 Map Filters NONE Filters NONE Steam 1 RUN: 08556fe9-79a1-4647-b257-bd07645565d1